Cogmind - Beta 16 @@@ ROGUE MODE // 2025.11.24 @ 16:01:02 Player: ChromeKnight Result: Self-destructed Performance ------------- Evolutions (9) 4500 Regions Visited (29) 5800 Robots Destroyed (328) 1640 Value Destroyed (20282) 20282 Prototype IDs (66) 1320 Alien Tech Used (6) 1200 Bonus (18862) 18862 TOTAL SCORE: 53604 Bonus ------- High Alert Combat Kills 2343 Follower Combat Kills 1787 Network Hubs Disabled 200 Aligned with FarCom 300 Met Zhirov 300 Built Enhanced Grunts 300 Met R17 at Cetus 500 Found Hidden Lab 3000 Met R17 at Research 2000 Acquired SGEMP 2000 Delivered SGEMP 2000 Met MAIN.C 5000 Friendly Fire -868 Cogmind --------- Core Integrity 737/1600 Matter 0/300 Energy 41/388 System Corruption 36% Temperature Cool (0) Movement Flying (65) Location -1/Command Parts ------- > --- POWER (3) -------- Quantum-Particle Reactor > --- PROPULSION (6) --- Flying QT-XBT Exoskeleton > --- UTILITY (12) ----- Armored Scrap Engine Advanced Heat Sink Large Storage Unit Experimental Targeting Computer Experimental Core Analyzer Advanced Remote Force Field > --- WEAPON (4) ------- (None) > --- INVENTORY (15) --- Advanced Heat Sink Advanced Heat Sink Advanced Phase Shifter Advanced Phase Shifter Thermal Barrier Improved Remote Force Field Subatomic Replicator Peak State ------------ > --- POWER ------------ Quantum-Particle Reactor > --- PROPULSION ------- Flying QT-XBT Exoskeleton > --- UTILITY ---------- Armored Scrap Engine Large Storage Unit Advanced Signal Interpreter Experimental Targeting Computer Experimental Core Analyzer SHELL Armor Experimental EM Shield Experimental Force Field > --- WEAPON ----------- Hvy. Directed Quantum Construct/C > --- INVENTORY -------- Experimental Cooling System Advanced Energy Well Advanced Sensor Array Improved Remote Force Field System Mapper Ghost Barrier Dimensional Node Initializer Transdimensional Reconstructor Transdimensional Reconstructor High-powered Transdimensional Reconstructor Subatomic Replicator Sigix Terminator SGEMP Prototype [Rating: 216] Favorites ----------- Power Constructs Engine Improved Ion Engine Power Core Light Nuclear Core Reactor Constructs Propulsion Constructs Treads Light Treads Wheel Armored Wheel Hover Unit Aerolev Unit Flight Unit Constructs Utility Large Storage Unit Device Armored Scrap Engine Storage Large Storage Unit Processor Advanced Signal Interpreter Hackware System Mapper Protection SHELL Armor Weapon Constructs Energy Gun Small Laser Energy Cannon Constructs Ballistic Gun AWS/Gauss Launcher Sigix Terminator Build | -11 -10 -10 -9 -9 -9 -8 -8 -8 -8 -6 -6 -6 -6 -6 -5 -5 -5 -5 -4 -4 -4 -4 -3 -3 -2 -2 -2 -1 -1 ------- Run | Yrd Mat Min Mat Min Exi Min Mat Sto Rec Fac Ext Cet Arc Hub Fac Upp Upp Zhi Pro Fac Arm Lab Res Tes Res Qua Frg Acc Com Slots Evolved 18 | . . . 2 . . . 2 . . 4 . . . . 2 . . . . 2 . . 2 . 2 . . 2 . Power 2 | . . . . . . . . . . 1 . . . . . . . . . . . . . . . . . 1 . Propulsion 4 | . . . 1 . . . 1 . . 1 . . . . . . . . . . . . 1 . . . . . . Utility 10 | . . . 1 . . . . . . 2 . . . . 2 . . . . 1 . . 1 . 2 . . 1 . Weapon 2 | . . . . . . . 1 . . . . . . . . . . . . 1 . . . . . . . . . Parts Attached 109 | 6 2 1 9 3 4 . 5 12 2 3 2 3 1 . 6 . . 3 . 3 3 . 6 13 1 6 . 8 7 Power 10 | 1 . . 2 . . . 1 2 . . . 1 . . . . . . . . . . . . . . . 3 . Engine 5 | 1 . . 1 . . . 1 2 . . . . . . . . . . . . . . . . . . . . . Core 2 | . . . 1 . . . . . . . . 1 . . . . . . . . . . . . . . . . . Reactor 3 | . . . . . . . . . . . . . . . . . . . . . . . . . . . . 3 . Propulsion 18 | 2 . . 3 2 3 . 1 5 . . . . . . 2 . . . . . . . . . . . . . . Treads 6 | 2 . . 2 1 . . . 1 . . . . . . . . . . . . . . . . . . . . . Leg . | . . . . . . . . . . . . . . . . . . . . . . . . . . . . . . Wheel 9 | . . . 1 1 3 . 1 3 . . . . . . . . . . . . . . . . . . . . . Hover 1 | . . . . . . . . 1 . . . . . . . . . . . . . . . . . . . . . Flight 2 | . . . . . . . . . . . . . . . 2 . . . . . . . . . . . . . . Utility 65 | 1 2 1 2 . . . 2 2 1 2 2 2 1 . 4 . . 3 . 3 3 . 6 10 1 6 . 5 6 Device 34 | . 1 1 1 . . . . 2 1 . . . 1 . 2 . . 1 . 2 1 . 1 7 . 5 . 4 4 Storage 6 | 1 1 . . . . . 1 . . . . . . . . . . 1 . . . . 1 . . . . 1 . Processor 9 | . . . 1 . . . . . . . . 1 . . 2 . . . . 1 . . 2 1 . 1 . . . Hackware 2 | . . . . . . . . . . . . . . . . . . . . . . . . . . . . . 2 Protection 14 | . . . . . . . 1 . . 2 2 1 . . . . . 1 . . 2 . 2 2 1 . . . . Artifact . | . . . . . . . . . . . . . . . . . . . . . . . . . . . . . . Weapon 16 | 2 . . 2 1 1 . 1 3 1 1 . . . . . . . . . . . . . 3 . . . . 1 Energy Gun 9 | 2 . . 2 . . . . 2 1 . . . . . . . . . . . . . . 2 . . . . . Energy Cannon 2 | . . . . . . . . 1 . . . . . . . . . . . . . . . 1 . . . . . Ballistic Gun 4 | . . . . 1 1 . 1 . . 1 . . . . . . . . . . . . . . . . . . . Ballistic Cannon . | . . . . . . . . . . . . . . . . . . . . . . . . . . . . . . Launcher 1 | . . . . . . . . . . . . . . . . . . . . . . . . . . . . . 1 Special Weapon . | . . . . . . . . . . . . . . . . . . . . . . . . . . . . . . Impact Weapon . | . . . . . . . . . . . . . . . . . . . . . . . . . . . . . . Slashing Weapon . | . . . . . . . . . . . . . . . . . . . . . . . . . . . . . . Piercing Weapon . | . . . . . . . . . . . . . . . . . . . . . . . . . . . . . . Special Melee Weapon . | . . . . . . . . . . . . . . . . . . . . . . . . . . . . . . Unidentified Prototypes 33 | . . 1 . . . . . 5 1 1 . 1 . . 1 . . 4 . . 1 . 2 6 1 4 2 . 3 Corrupted Parts 1 | . . . . . . . . . . . . . . . . . . . . . . . . . . . . 1 . System Corruption 6 | . . . . . . . . . . . . . . . . . . . . . . . . . . . . 6 . Parts Lost 27 | . . . 1 1 . 1 . 5 1 . . . . . . . . . . . 7 . . . . 1 3 4 3 Power 7 | . . . 1 . . 1 . . . . . . . . . . . . . . 1 . . . . . 2 1 1 Propulsion 5 | . . . . . . . . 3 1 . . . . . . . . . . . 1 . . . . . . . . Utility 12 | . . . . . . . . 1 . . . . . . . . . . . . 4 . . . . 1 1 3 2 Weapon 3 | . . . . 1 . . . 1 . . . . . . . . . . . . 1 . . . . . . . . Highest Loss Streak 3 | . . . 1 1 . 1 . 2 1 . . . . . . . . . . . 2 . . . . 1 3 1 2 To Critical Strikes 1 | . . . . . . . . . . . . . . . . . . . . . 1 . . . . . . . . Average Backups 12 | . 2 8 12 13 13 12 13 22 14 9 12 12 11 10 11 13 13 14 15 15 13 14 14 12 11 11 11 8 9 Power . | . . . . . 1 1 . 1 . . . . . . . . . . . . . . . . . . . . . Propulsion 1 | . . . 3 4 3 2 2 7 2 . . . . . . . . . . . . . . . . . . . . Utility 7 | . . 3 4 4 4 4 7 7 6 7 11 7 9 9 9 11 11 13 13 12 11 12 12 11 11 7 6 5 7 Weapon 2 | . 2 4 5 4 3 4 2 6 4 1 1 3 1 . . . . . . . 1 1 1 . . . 1 1 . Tool/Special . | . . . . . . . . . . . . . . . . . . . . . . . . . . . . . . Unused Backups 60 | . . . 2 . 1 . 3 8 10 2 . 7 4 . . . 1 3 . 2 . . 5 5 . 2 . . 5 Power 3 | . . . . . . . . 2 1 . . . . . . . . . . . . . . . . . . . . Propulsion 11 | . . . . . . . . 3 7 . . 1 . . . . . . . . . . . . . . . . . Utility 27 | . . . . . . . 1 2 1 . . 5 . . . . 1 3 . 2 . . 3 3 . 2 . . 4 Weapon 17 | . . . 2 . 1 . 2 1 1 2 . 1 4 . . . . . . . . . 2 1 . . . . . Tool/Special 2 | . . . . . . . . . . . . . . . . . . . . . . . . 1 . . . . 1 Average Slot Usage (%) 58 | . 96 100 95 99 95 78 78 80 55 43 46 47 46 46 53 52 52 51 52 51 50 47 45 51 47 46 46 43 47 Engine 3 | . 14 14 8 11 11 1 7 9 8 6 6 3 . . . . . . . . . . . . . . . . . Reactor 2 | . . . . . . . . . . . . 2 6 6 5 5 5 5 5 5 3 . 2 4 4 4 3 3 4 Treads 4 | . 28 28 22 16 6 . . 7 2 . . 4 6 6 4 . . . . . . . 1 . . . . 4 . Leg 1 | . . . . . . . . . 1 . . . . . . . . 3 5 1 1 5 . . 4 3 3 . 1 Wheel 4 | . . . 8 16 26 33 34 24 5 . . . . . . . . . . . . . . . . . . . . Flight 1 | . . . . . . . . . 2 6 6 1 . . 3 5 5 1 . 2 3 . . 3 . . . . 1 Device 11 | . 6 14 11 11 11 11 9 3 7 6 7 6 7 6 12 17 17 16 17 19 13 10 12 17 13 12 12 9 15 Storage 6 | . 19 14 11 11 11 11 9 9 9 6 6 6 6 6 5 5 5 5 5 5 5 5 4 4 4 4 4 8 7 Processor 7 | . . . 9 11 11 11 4 . . . . 4 6 6 7 5 5 5 5 5 10 10 9 11 13 13 13 11 8 Protection 3 | . . . . . . . 4 8 1 9 11 7 4 6 4 5 5 5 5 5 4 5 3 3 3 4 4 3 4 Energy Gun 4 | . 28 28 22 17 6 . . 8 6 . . . . . . . . . . . . . . . . . . . . Energy Cannon 1 | . . . . . . . . . 3 . . . 4 6 5 5 5 5 5 3 . . 2 1 . 1 2 . . Ballistic Gun 1 | . . . . 3 11 11 9 9 . . . . . . . . . . . . . . . . . . . . . Ballistic Cannon 2 | . . . . . . . . . 3 6 6 6 1 . . . . . . 1 5 5 1 2 4 2 1 4 3 Peak Build Rating 216 | 6 7 16 18 19 34 34 40 49 49 53 56 99 102 102 128 121 121 128 126 133 128 88 149 174 195 216 212 202 202 Average Rating 117 | 4 6 7 15 17 23 32 36 43 45 50 53 75 99 102 115 120 120 122 126 130 103 88 124 155 194 202 210 183 193 On Entrance 89 | . 6 7 9 17 18 34 32 40 43 47 52 53 102 102 102 120 121 120 126 126 128 88 88 149 172 195 212 179 202 Avg Prop Armor Cover (%) 10 | . . . 19 14 11 . . 6 6 . . . . . 1 . . . . . . . . . . . . . . Naked Turns . | . . . . . . . . . . . . . . . . . . . . . . . . . . . . . . Heaviest Build 162 | 12 32 28 34 34 38 38 107 110 110 56 56 73 75 75 83 83 83 83 83 92 91 52 70 101 114 162 162 134 150 Greatest Support 354 | 40 40 40 40 24 36 36 52 52 78 78 78 94 94 94 169 169 169 182 151 151 74 45 112 122 122 354 354 261 259 Greatest Overweight (x) 36 | . . . 2 2 1 1 2 36 6 . 15 . . . . . . . . 1 3 1 1 1 . 1 32 . . Average Overweight (x) . | . . . 1 1 . . . 3 1 . . . . . . . . . . . 1 1 . . . . . . . Largest Inventory Capacity 25 | 8 15 15 15 15 15 15 25 25 25 15 15 15 15 15 15 15 15 15 15 15 15 15 15 15 15 15 15 15 15 Average Capacity 15 | 7 14 15 15 15 15 15 20 25 19 15 15 15 15 15 15 15 15 15 15 15 15 15 15 15 15 15 15 15 15 Most Carried 25 | . 7 12 15 15 15 15 17 25 25 13 14 15 15 11 15 15 15 15 15 15 15 15 15 15 15 15 15 12 13 Average Carried 14 | . 3 9 13 14 14 14 15 24 15 10 13 13 12 11 12 14 14 14 15 14 13 15 14 14 14 14 14 9 10 Final Capacity 25 | 8 15 15 15 15 15 15 25 25 15 15 15 15 15 15 15 15 15 15 15 15 15 15 15 15 15 15 15 15 15 Final Carried 25 | . 7 12 14 15 14 15 17 25 13 13 14 15 11 11 14 15 14 15 15 15 15 15 15 15 15 15 13 8 7 Scrap Engine Consumption 327 | . . . . . . . . . 33 8 2 12 5 . 5 . 2 4 1 15 39 . 42 23 8 53 14 14 47 Constructs Created 4 | . . . . . . . . . 3 . . . . . . . . . . . . . . . . . . 1 . Constructs Modified 136 | . . . . . . . . . 12 . . 8 2 . 3 . . 2 1 7 9 . 23 11 1 21 10 5 21 Class Distribution -------------------- 49% | Construct 13% | Mutant 12% | Commander-Construct 11% | Scavenger-Construct 7% | Scavenger-Mutant 4% | Commander-Mutant Dominant Class ---------------- Mutant | -10/Materials Mutant | -10/Mines Scavenger-Mutant | -9/Materials Scavenger-Mutant | -9/Mines Scavenger-Mutant | -9/Exiles Mutant | -8/Mines Mutant | -8/Materials Commander-Mutant | -8/Storage Commander-Construct | -8/Recycling Commander-Construct | -6/Factory Commander-Construct | -6/Extension Commander-Construct | -6/Cetus Commander-Construct | -6/Archives Commander-Construct | -6/Hub_04(d) Construct | -5/Factory Construct | -5/Upper Caves Construct | -5/Upper Caves Construct | -5/Zhirov Construct | -4/Proximity Caves Construct | -4/Factory Construct | -4/Armory Construct | -4/Lab Construct | -3/Research Scavenger-Construct | -3/Testing Construct | -2/Research Construct | -2/Quarantine Construct | -2/Protoforge Construct | -1/Access Scavenger-Construct | -1/Command Resources | -11 -10 -10 -9 -9 -9 -8 -8 -8 -8 -6 -6 -6 -6 -6 -5 -5 -5 -5 -4 -4 -4 -4 -3 -3 -2 -2 -2 -1 -1 ----------- Run | Yrd Mat Min Mat Min Exi Min Mat Sto Rec Fac Ext Cet Arc Hub Fac Upp Upp Zhi Pro Fac Arm Lab Res Tes Res Qua Frg Acc Com Matter Collected 8464 | 218 . 77 90 42 . 40 50 155 25 30 50 30 28 . 90 . . 60 . 20 851 . 1050 1033 176 1519 1047 289 1494 Remotely . | . . . . . . . . . . . . . . . . . . . . . . . . . . . . . . Salvage Created 20531 | . . 69 393 137 . 180 178 1137 429 50 548 143 369 136 696 49 169 413 78 308 1430 . 2069 2111 1320 1856 1883 1281 3099 Parts 1057 | . . 1 32 4 . 12 13 71 27 3 25 7 21 9 40 3 15 8 8 13 67 . 76 95 52 131 110 68 146 Haulers Intercepted 5 | . . . 1 . . . . 1 . . . . . . 1 . . . . . . . 2 . . . . . . Recyclers Shooed 4 | . . . 1 . . . . . . . 1 . . . . . . . . . . . . . 2 . . . . Parts Field Recycled . | . . . . . . . . . . . . . . . . . . . . . . . . . . . . . . Retrieved Matter . | . . . . . . . . . . . . . . . . . . . . . . . . . . . . . . Parts Self-Destructed 20 | . . . . . . . . . . . . . . . . . 5 7 8 . . . . . . . . . . Prevented . | . . . . . . . . . . . . . . . . . . . . . . . . . . . . . . Parts Restored . | . . . . . . . . . . . . . . . . . . . . . . . . . . . . . . Kills | -11 -10 -10 -9 -9 -9 -8 -8 -8 -8 -6 -6 -6 -6 -6 -5 -5 -5 -5 -4 -4 -4 -4 -3 -3 -2 -2 -2 -1 -1 ------- Run | Yrd Mat Min Mat Min Exi Min Mat Sto Rec Fac Ext Cet Arc Hub Fac Upp Upp Zhi Pro Fac Arm Lab Res Tes Res Qua Frg Acc Com Combat Hostiles Destroyed 272 | . . 2 6 10 . 6 3 20 3 1 5 1 3 2 9 . 3 . 4 2 28 . 25 26 12 19 20 15 47 Melee 4 | . . . . . . . . . . . . . . . . . . . . . 1 . . . . . . 2 1 Guns 46 | . . 2 6 10 . 6 3 16 3 . . . . . . . . . . . . . . . . . . . . Cannons 197 | . . . . . . . . . . 1 5 1 3 2 9 . 3 . 4 2 26 . 21 25 9 17 17 13 39 AOE 11 | . . . . . . . . 2 . . . . . . . . . . . . 1 . . . 1 . . . 7 Classes Destroyed 32 | . . 1 4 1 . 1 2 3 3 1 . . . . 1 1 1 . 1 . 3 . 4 2 . 1 . . 2 Worker 13 | . . . . . . . . 2 . . . . . . 1 . . . . . . . . . 3 . . 1 6 Builder 9 | . . . . . . . 1 . 1 . 1 . . . 1 . . . . 1 . . . 2 2 . . . . Tunneler 1 | . . . . . . . . . . . . . . . 1 . . . . . . . . . . . . . . Hauler 5 | . . . 1 . . . . 1 . . . . . . 1 . . . . . . . 2 . . . . . . Recycler 9 | . . . . . . . . . 1 . 1 . . . . . . . . . . . 1 1 . . . 3 2 Mechanic 1 | . . . . . . . . . . . . . . . . . . . . . . . . . . . . . 1 Operator 7 | . . . 2 . . . . 1 . . . . 1 . . . . . . 1 . . . . 1 . 1 . . Drone 2 | . . . . . . . . . . . . . . . . . . . 2 . . . . . . . . . . Watcher 15 | . . . . . . . . 1 . . 2 . . . 2 . . . . 3 . . . 2 2 . 2 . 1 Swarmer 50 | . . 1 . 2 . 3 . 2 . . . . . . 4 . . . 2 . 10 . 5 5 . . . 7 9 Saboteur 4 | . . . . . . . . . . . . . . . . . . . . . 3 . . . . . . . 1 Grunt 68 | . . . 2 . . 2 . 10 . . 3 . . . 3 . 1 . . . 6 . 7 11 7 6 . . 10 Brawler 4 | . . . . . . 1 . . . . . . . . . . . . . . . . . . . . . . 3 Duelist 8 | . . . . . . . . 1 . . 1 . . . . . . . . . 3 . . 1 1 . . . 1 Protector 1 | . . . . . . . . . . . . . . . . . . . . . . . . . . . . . 1 Researcher 1 | . . . . . . . . . . . . . . . . . . . . . . . . 1 . . . . . Sentry 29 | . . . 4 . . . 2 7 1 . 1 . 3 2 1 . . . . . . . 1 . 2 . 3 . 2 Demolisher 3 | . . . . . . . . . . . . . . . . . . . . . . . 3 . . . . . . Specialist 4 | . . . . . . . . . . . . . . . . . . . . . 4 . . . . . . . . Hunter 27 | . . . . . . . 1 . . . . . . . 1 . . . . . . . 4 2 2 . 3 4 10 Programmer 30 | . . . . . . . . . . 1 . . . . . . . . . 2 1 . . 4 . . 9 4 9 Heavy 1 | . . . . . . . . . . . . . . . . . . . . . 1 . . . . . . . . Behemoth 2 | . . . . . . . . . . . . . . . . . . . . . . . 1 . . . 1 . . Cetus Guard 1 | . . . . . . . . . . . . 1 . . . . . . . . . . . . . . . . . Quarantine Guard 12 | . . . . . . . . . . . . . . . . . . . . . . . . . . 12 . . . Hotshot 4 | . . . . . . . . . . . . . . . . . . . . . . . . . . . 4 . . Combat Programmer 1 | . . . . . . . . . . . . . . . . . . . . . . . . . . . . . 1 Striker 5 | . . . . . . . . . . . . . . . . . . . . . . . 3 2 . . . . . Executioner 1 | . . . . . . . . . . . . . . . . . . . . . . . 1 . . . . . . Alpha 7 1 | . . . . . . . . . . . . . . . . . . . . . . . . 1 . . . . . Fortress 1 | . . . . . . . . . . . . . . . . . . . . . . . . . . 1 . . . Scientist 2 | . . . . . . . . . 2 . . . . . . . . . . . . . . . . . . . . Scrapper 3 | . . . . . . . . . 3 . . . . . . . . . . . . . . . . . . . . Samaritan 2 | . . . . . . . . . . . . . . . . 1 1 . . . . . . . . . . . . Master Thief 2 | . . . . . . . . . . . . . . . . . 2 . . . . . . . . . . . . Assembled 8 | . . . . 8 . . . . . . . . . . . . . . . . . . . . . . . . . Thug 1 | . . . . . . . . . . . . . 1 . . . . . . . . . . . . . . . . Guerrilla 1 | . . . . . . . . . . . . 1 . . . . . . . . . . . . . . . . . Best Kill Streak 10 | . . 1 3 3 . 3 2 5 2 1 2 1 4 2 5 . 2 . 3 3 7 . 9 6 10 4 4 9 10 Combat Bots Only 9 | . . 1 2 3 . 3 1 5 2 1 2 1 3 2 4 . 2 . 3 2 7 . 9 5 4 4 3 7 9 Max Kills in Single Turn 7 | . . 1 1 1 . 1 1 2 1 1 1 1 1 1 1 1 1 . 1 1 1 . 1 1 4 1 1 2 7 Gunslinging . | . . . . . . . . . . . . . . . . . . . . . . . . . . . . . . Exploded 7 | . . . . . . . . 1 . . . . . . . . . . . . 1 . . . 1 . . . 7 Melee 1 | . . . . . . . . . . . . . . . . . . . . . 1 . . . . . . 1 1 Uniques/NPCs Destroyed 1 | . . 1 . . . . . . . . . . . . . . . . . . . . . . . . . . . YI-UF0 (-10/Mines) Combat | -11 -10 -10 -9 -9 -9 -8 -8 -8 -8 -6 -6 -6 -6 -6 -5 -5 -5 -5 -4 -4 -4 -4 -3 -3 -2 -2 -2 -1 -1 -------- Run | Yrd Mat Min Mat Min Exi Min Mat Sto Rec Fac Ext Cet Arc Hub Fac Upp Upp Zhi Pro Fac Arm Lab Res Tes Res Qua Frg Acc Com Hostile Shots Fired 1878 | . . 14 31 31 . 19 6 77 9 4 35 13 8 14 24 9 18 . 9 77 223 . 43 153 27 125 160 304 445 Missed 594 | . . 4 8 7 . 6 3 17 . 1 18 5 3 8 9 4 9 . 3 24 68 . 14 47 11 48 44 61 172 Hits 1284 | . . 10 23 24 . 13 3 60 9 3 17 8 5 6 15 5 9 . 6 53 155 . 29 106 16 77 116 243 273 Melee 28 | . . . . 3 . . . 1 . . . . . . . . 4 . . . 12 . . . . . . . 8 Projectile 1256 | . . 10 23 21 . 13 3 59 9 3 17 8 5 6 15 5 5 . 6 53 143 . 29 106 16 77 116 243 265 AOE 16 | . . 9 . . . . . . . . . . . . . . . . . . 1 . 4 . . . . . 2 Critical Strikes 65 | . . . . . . . . 2 2 . . 1 . . . 1 1 . . 1 10 . . 6 . 6 6 10 19 Actively Blocked 7 | . . . . . . . . . . . . . . . . . . . . . . . . 5 . 2 . . . Part Disruptions 4 | . . . . . . . . . . . . . . . . . . . . . . . . . . . . . 4 Damage Taken 25541 | . . 356 311 321 . 202 45 1061 262 46 155 148 119 105 101 49 53 . 47 714 2825 . 581 1276 206 1617 2568 5415 6958 Core 1516 | . . 33 57 67 . 35 . 152 57 . 26 14 . 20 6 10 8 . . 24 140 . 57 46 . 46 22 258 438 Absorbed by Shields 5842 | . . . . . . . . . . . 30 66 . . 110 51 56 . 50 312 863 . 212 1039 214 1484 1191 . 164 Ignored by Resistances 52 | . . . . . . . . . . . . . . . . . . . . . . . . . . . 52 . . Regen/Repaired (Parts) 13665 | . . . . . . . . . . . . 94 77 . 42 . . 10 . 129 696 . 616 520 171 1678 824 4913 3895 Core Remaining (%) 83 | 100 . 86 . . . 60 . . 62 . . . . 92 . . . . 97 . . 78 . 92 . . 87 . . Volleys Fired 985 | . 3 9 31 30 . . . 35 16 7 41 20 16 6 39 6 14 9 8 34 106 . 86 116 45 86 51 30 141 Largest 2 | . 2 2 2 2 . . . 1 2 1 1 1 1 1 1 1 1 1 1 1 1 . 1 1 1 1 1 1 1 Hottest 471 | . 80 80 101 101 . . . 50 100 . . . . . . . . . . . . . 44 66 66 66 471 471 471 Shots Fired 1118 | . 6 18 56 58 . 22 13 70 20 7 41 20 16 6 39 6 14 9 8 34 105 . 86 116 45 86 51 30 136 Gun 256 | . 6 18 56 58 . 22 13 70 13 . . . . . . . . . . . . . . . . . . . . Cannon 861 | . . . . . . . . . 7 7 41 20 16 6 39 6 14 9 8 34 105 . 86 116 45 86 51 30 135 Launcher 1 | . . . . . . . . . . . . . . . . . . . . . . . . . . . . . 1 Special . | . . . . . . . . . . . . . . . . . . . . . . . . . . . . . . Kinetic 607 | . . . . 12 . 22 13 35 . 7 41 20 16 . . . . . . 21 105 . . 77 45 53 32 14 94 Thermal 413 | . 6 18 33 30 . . . . 7 . . . . 6 39 6 14 9 8 13 . . 86 39 . 29 12 16 42 Explosive . | . . . . . . . . . . . . . . . . . . . . . . . . . . . . . . Electromagnetic 98 | . . . 23 16 . . . 35 13 . . . . . . . . . . . . . . . . 4 7 . . Robot Hit Streak 19 | . 2 6 11 6 . 6 5 15 9 12 19 5 14 2 6 5 6 14 4 5 8 . 15 13 10 16 13 7 11 Robot Miss Streak 5 | . 3 4 3 5 . 1 1 4 1 . 3 2 4 4 4 3 2 1 4 4 5 . 3 2 2 1 2 1 3 Penetration Max 1 | . . . . . . . . . . . . 1 1 . . . . . . . . . . . . . . 1 1 Secondary Targets 3 | . . 1 2 . . . . . . . . . . . . . . . . . . . . . . . . . . Max Gunslinging Chain 1 | . . 1 1 . . . . . . . . . . . . . . . . . . . . . . . . . . Capacitor 96 | . . . . . . . . . . . . . . . . . . . . . . . 83 13 . . . . . Autonomous 71 | . . . . . . 22 13 36 . . . . . . . . . . . . . . . . . . . . . Shots Hit Robots 746 | . 3 11 44 33 . 17 11 64 19 3 22 12 15 3 27 4 10 9 4 18 65 . 60 70 25 64 36 19 78 Core Hits 383 | . 1 6 20 20 . 6 5 40 19 . 9 3 16 2 16 3 5 8 4 7 27 . 24 25 14 27 10 17 49 Critical Kills 8 | . . . . . . . . . . . . . . . . . . . . . . . 3 1 . . . . 4 Critical Parts Destroyed 8 | . . . . . . . . . . . . . . . . . . . . . . . 2 . . . . . 6 Critical Strikes 25 | . . . 3 2 . . . . . . . . . . . . . . . . 3 . 5 1 . . . . 11 Burn 5 | . . . 3 2 . . . . . . . . . . . . . . . . . . . . . . . . . Meltdown 4 | . . . . . . . . . . . . . . . . . . . . . . . 3 1 . . . . . Destroy 13 | . . . . . . . . . . . . . . . . . . . . . . . 2 . . . . . 11 Blast 3 | . . . . . . . . . . . . . . . . . . . . . 3 . . . . . . . . Melee Attacks . | . . . . . . . . . . . . . . . . . . . . . . . . . . . . . . Impact . | . . . . . . . . . . . . . . . . . . . . . . . . . . . . . . Slashing . | . . . . . . . . . . . . . . . . . . . . . . . . . . . . . . Piercing . | . . . . . . . . . . . . . . . . . . . . . . . . . . . . . . Sneak Attacks . | . . . . . . . . . . . . . . . . . . . . . . . . . . . . . . Combat Hostiles . | . . . . . . . . . . . . . . . . . . . . . . . . . . . . . . Follow-up Attacks . | . . . . . . . . . . . . . . . . . . . . . . . . . . . . . . Damage Inflicted 81356 | . 30 131 591 429 . 476 312 1834 467 151 1056 812 1169 261 1729 160 678 663 190 1277 4661 . 4539 9433 4188 9879 8153 3733 24354 Guns 3827 | . 30 127 591 405 . 476 312 1669 217 . . . . . . . . . . . . . . . . . . . . Cannons 66267 | . . . . . . . . . 148 151 1056 812 1169 198 1650 160 678 663 190 1277 4658 . 4539 9433 3735 9879 8131 3655 14085 Explosions 10908 | . . . . . . . . 150 102 . . . . . 38 . . . . . . . . . 355 . . . 10263 Melee . | . . . . . . . . . . . . . . . . . . . . . . . . . . . . . . Ramming 354 | . . 4 . 24 . . . 15 . . . . . 63 41 . . . . . 3 . . . 98 . 22 78 6 Kinetic 44600 | . . . . 55 . 476 312 1045 . 151 1056 812 1169 . . . . . . 566 4658 . . 6442 3735 7376 5597 1534 9616 Thermal 33259 | . 30 127 328 231 . . . 150 250 . . . . 198 1688 160 678 663 190 711 . . 4539 2991 . 2154 1485 2121 14565 Explosive 167 | . . . . . . . . . . . . . . . . . . . . . . . . . . . . . 167 Electromagnetic 2976 | . . . 263 119 . . . 624 217 . . . . . . . . . . . . . . . 355 349 1049 . . Impact . | . . . . . . . . . . . . . . . . . . . . . . . . . . . . . . Slashing . | . . . . . . . . . . . . . . . . . . . . . . . . . . . . . . Piercing . | . . . . . . . . . . . . . . . . . . . . . . . . . . . . . . Highest Corruption 36 | . . . . . . . . . . 1 1 1 1 1 . . . . . 3 6 6 . 2 1 1 10 19 36 Average Corruption 6 | . . . . . . . . . . 1 1 1 1 1 . . . . . 2 4 6 . 1 1 1 2 17 23 Corruption Purged 1 | . . . . . . . . . . . . . 1 . . . . . . . . . . . . . . . . Corruption Blocked . | . . . . . . . . . . . . . . . . . . . . . . . . . . . . . . Effects 200 | . . . . . . . . . . 1 1 1 2 . . . . . . 1 17 1 . 11 . 26 18 36 85 Message Errors 45 | . . . . . . . . . . 1 . 1 1 . . . . . . . 3 . . 2 . 5 3 10 19 Matter Fused 52 | . . . . . . . . . . . . . 1 . . . . . . 1 5 . . 2 . 9 6 6 22 Heat Flow Errors 22 | . . . . . . . . . . . . . . . . . . . . . . . . 3 . 5 1 3 10 Energy Discharges 19 | . . . . . . . . . . . . . . . . . . . . . 3 . . . . 3 4 3 6 Parts Rejected 2 | . . . . . . . . . . . . . . . . . . . . . . . . . . . 1 . 1 Parts Fused 5 | . . . . . . . . . . . . . . . . . . . . . . . . . . . 1 1 3 Data Loss (minor) 32 | . . . . . . . . . . . 1 . . . . . . . . . 3 1 . 3 . 3 2 9 10 Data Loss (major) 7 | . . . . . . . . . . . . . . . . . . . . . 2 . . 1 . 1 . 2 1 Alerts 4 | . . . . . . . . . . . . . . . . . . . . . . . . . . . . 2 2 Misdirections 6 | . . . . . . . . . . . . . . . . . . . . . . . . . . . . . 6 Weapon Failures 6 | . . . . . . . . . . . . . . . . . . . . . 1 . . . . . . . 5 Overload Shots . | . . . . . . . . . . . . . . . . . . . . . . . . . . . . . . Overflow Damage 11533 | . . . . . . . . . 20 56 73 59 . 16 52 . 85 57 . 273 603 . 206 1702 875 977 2466 637 3376 Projectiles 11069 | . . . . . . . . . . 56 73 59 . 2 52 . 85 57 . 273 603 . 206 1702 850 977 2466 637 2971 Explosions 445 | . . . . . . . . . 20 . . . . . . . . . . . . . . . 20 . . . 405 Melee 19 | . . . . . . . . . . . . . . 14 . . . . . . . . . . 5 . . . . Knockbacks 81 | . . . . 1 . . . . . . 5 2 5 . . . . . . 4 22 . . 14 10 1 . . 17 Impact 1 | . . . . 1 . . . . . . . . . . . . . . . . . . . . . . . . . Kinetic 73 | . . . . . . . . . . . 5 2 5 . . . . . . 3 21 . . 14 8 1 . . 14 Secondary 7 | . . . . . . . . . . . . . . . . . . . . 1 1 . . . 2 . . . 3 Self-Inflicted Damage 205 | . . . . 11 . 36 . 44 70 . . . . . . . . . . . 1 . . . 43 . . . . Shots 5 | . . . . . . 1 . 1 2 . . . . . . . . . . . . . . . 1 . . . . Rammed 22 | . . 1 . 4 . . . 3 . . . . . 2 1 . . . . . 1 . . . . . 1 8 1 Targets Rammed 31 | . . 1 . 4 . . . 3 . . . . . 2 1 . . . . . 1 . . . 5 . 2 10 2 Kicked 7 | . . . . . . . . . . . . . . . . . . . . . . . . . 5 . 1 . 1 Crushed 2 | . . . . . . . . . . . . . . . . . . . . . . . . . . . . 2 . Highest Temperature 657 | . 18 90 231 189 . . . 285 139 . . . . . . . 4 . . . 1 . 178 274 64 267 435 657 437 Average Temperature 118 | . 12 37 77 71 . . . 105 43 . . . . . . . 3 . . . 1 . 50 53 29 69 209 240 153 Received Heat Transfer 2281 | . . 24 114 20 . 45 . 459 106 . 53 . 9 21 . 24 25 . 4 31 276 . 36 161 12 48 185 27 601 Effects 37 | . . . 2 . . . . 2 . . . . . . . . . . . . . . . . . 1 5 20 7 Shutdowns 11 | . . . . . . . . . . . . . . . . . . . . . . . . . . . 1 8 2 Energy Bleed 2 | . . . . . . . . . . . . . . . . . . . . . . . . . . 1 . 1 . Interference 20 | . . . 2 . . . . 2 . . . . . . . . . . . . . . . . . . 3 8 5 Matter Decay 4 | . . . . . . . . . . . . . . . . . . . . . . . . . . . 1 3 . Siege Activations 1 | . . . . . . . . . . . . . . . . . . . . . . . . . . . 1 . . Total Turns 2 | . . . . . . . . . . . . . . . . . . . . . . . . . . . 2 . . Longest Duration 2 | . . . . . . . . . . . . . . . . . . . . . . . . . . . 2 . . Martial Activations . | . . . . . . . . . . . . . . . . . . . . . . . . . . . . . . Shielding Activations . | . . . . . . . . . . . . . . . . . . . . . . . . . . . . . . Robots Disrupted . | . . . . . . . . . . . . . . . . . . . . . . . . . . . . . . Combat Hostiles . | . . . . . . . . . . . . . . . . . . . . . . . . . . . . . . Robots Corrupted 12 | . . . . . . . . 2 . . . . . . . . . . . 1 . . . . 3 2 3 . 1 Combat Hostiles 9 | . . . . . . . . 2 . . . . . . . . . . . . . . . . 2 2 3 . . Parts Fried 35 | . . . 1 . . . . 1 1 . . . . . . . . . . 3 . . . . 5 7 14 . 3 Impact Corruptions 8 | . . . . . . . . . . . . . . 1 . . . . . 1 . . . . 3 . . . 3 Robots Melted 5 | . . . . . . . . . . . . . . . . . . . . . . . 4 1 . . . . . Combat Hostiles 5 | . . . . . . . . . . . . . . . . . . . . . . . 4 1 . . . . . Parts Melted 25 | . . . 1 . . . . 1 1 . . . . . 1 . . . . . . . 10 5 . 5 . 1 . Heat Transferred 8750 | . 75 275 1039 740 . . . 250 100 . . . . . 50 . . . 37 555 . . 2257 962 . 629 246 444 1091 Parts Sabotaged 3 | . . . . . . . . . . . . . . . . . . . . . 3 . . . . . . . . Parts Stolen 2 | . . . . . . . . . . . . . . . . . 2 . . . . . . . . . . . . Parts Stripped . | . . . . . . . . . . . . . . . . . . . . . . . . . . . . . . Power Chain Reactions 4 | . . . . . . . . 2 2 . . . . . . . . . . . . . . . . . . . . Alert | -11 -10 -10 -9 -9 -9 -8 -8 -8 -8 -6 -6 -6 -6 -6 -5 -5 -5 -5 -4 -4 -4 -4 -3 -3 -2 -2 -2 -1 -1 ------- Run | Yrd Mat Min Mat Min Exi Min Mat Sto Rec Fac Ext Cet Arc Hub Fac Upp Upp Zhi Pro Fac Arm Lab Res Tes Res Qua Frg Acc Com Maximum Alert Level 5 | . . . . . . . . 2 1 1 2 2 1 1 1 . . . . . 2 . 2 3 2 2 . 1 5 Low Security (%) 68 | 100 100 100 100 100 . 100 100 42 92 69 43 . 4 34 65 . . . . 100 19 . 73 . . 89 100 38 13 Level 1 18 | . . . . . . . . 41 7 30 5 77 95 65 34 . . . . . 73 . 23 34 8 10 . 61 11 Level 2 10 | . . . . . . . . 15 . . 51 22 . . . . . . . . 7 . 3 53 91 . . . 40 Level 3 2 | . . . . . . . . . . . . . . . . . . . . . . . . 11 . . . . 21 Level 4 1 | . . . . . . . . . . . . . . . . . . . . . . . . . . . . . 13 Level 5 . | . . . . . . . . . . . . . . . . . . . . . . . . . . . . . . High Security . | . . . . . . . . . . . . . . . . . . . . . . . . . . . . . . Max Security . | . . . . . . . . . . . . . . . . . . . . . . . . . . . . . . Peak Influence 3280 | . . 81 60 50 . 124 83 433 259 215 529 439 371 327 379 . . . . 189 456 . 455 739 685 409 194 368 3280 Initial 402 | . . . 4 12 . . 1 30 142 200 85 266 155 87 149 . . . . 150 86 . . 252 402 384 112 100 208 Average 186 | . . 11 18 2 . 45 21 253 53 188 302 354 301 207 188 . . . . 92 281 . 99 470 538 140 119 205 643 Influence Increases 13487 | . . 192 187 55 . 180 132 871 334 305 790 313 246 300 468 . 95 15 65 471 744 . 697 903 473 681 607 702 3661 Destroy 0b10 Robot/C 6020 | . . 140 120 40 . 120 60 480 80 80 380 160 80 80 180 . 20 . 40 40 560 . 500 540 240 380 400 380 920 Destroy 0b10 Robot/NC 350 | . . . 15 . . . 5 25 10 . 25 10 5 . 30 . . 15 10 25 . . 15 25 40 . 15 25 55 Destroy Leader 1204 | . . 30 52 10 . 20 30 134 . 20 56 . . 30 36 . . . . 16 70 . 114 64 54 130 94 82 162 Allied During Kill 774 | . . 22 . . . . . 130 58 1 193 129 85 110 . . . . . . . . . . . . . 46 . Successful Hack 130 | . . . . 5 . . . 7 32 . . . . . 5 . . . . 14 . . 6 4 22 9 5 . 21 Select Force Hacks 170 | . . . . . . . . . 120 . . . . 50 . . . . . . . . . . . . . . . Disable Machine 705 | . . . . . . 15 30 30 15 . 75 . 60 15 30 . . . . 30 30 . . 120 60 105 45 45 . Anti-Garrison Action 50 | . . . . . . . . . . . . . . . . . . . . . . . . . . . . . 50 Destroy Structure 2984 | . . . . . . 25 7 20 19 4 46 14 16 15 112 . . . . 46 54 . 32 60 42 42 33 109 2288 Advance Influence 350 | . . . . . . . . . . 200 . . . . . . . . . 150 . . . . . . . . . Partial Spotted 30 | . . . . . . . . . . . . . . . 15 . . . . . . . 15 . . . . . . Lose Combat Pursuer 720 | . . . . . . . . 45 . . 15 . . . 60 . 75 . 15 150 30 . 15 90 15 15 15 15 165 Influence Decreases 10207 | . . 179 167 88 . 174 65 577 701 130 488 401 384 244 420 302 111 52 65 294 473 448 248 637 503 1165 641 542 708 Entered New Map 2965 | . . . 9 21 . . 5 43 225 . 90 211 234 164 158 132 11 37 . . 91 448 . 197 313 301 89 67 119 Time Decay 6480 | . . 179 148 57 . 164 60 464 466 70 238 170 130 20 262 170 100 15 65 294 302 . 248 440 190 712 522 435 559 Lost Part 262 | . . . 10 10 . 10 . 50 10 . . . . . . . . . . . 70 . . . . 2 30 40 30 Lost Ally 350 | . . . . . . . . 20 . 60 160 20 20 60 . . . . . . 10 . . . . . . . . Purge Threat 150 | . . . . . . . . . . . . . . . . . . . . . . . . . . 150 . . . Squads Dispatched 54 | . . 1 3 . . . 2 2 . 1 1 . . 3 2 . . . . 2 6 . 6 6 2 1 4 3 9 Investigation 10 | . . . . . . . 1 . . . . . . 2 . . . . . . 2 . 3 . 1 1 . . . Extermination 16 | . . . . . . . . . . . . . . . 1 . . . . 1 1 . . 2 1 . 3 3 4 Reinforcement 21 | . . . 3 . . . 1 2 . 1 . . . 1 1 . . . . 1 3 . 3 3 . . 1 . 1 Assault 7 | . . 1 . . . . . . . . 1 . . . . . . . . . . . . 1 . . . . 4 Garrison . | . . . . . . . . . . . . . . . . . . . . . . . . . . . . . . Intercept . | . . . . . . . . . . . . . . . . . . . . . . . . . . . . . . Searches Triggered . | . . . . . . . . . . . . . . . . . . . . . . . . . . . . . . Construction Impeded 2 | . . . . . . . . 1 . . . . . . . . . . . 1 . . . . . . . . . Haulers Reinforced 3 | . . . . . . . . . . . . . . . 1 . . . . . . . 1 1 . . . . . Active Scanning Responses . | . . . . . . . . . . . . . . . . . . . . . . . . . . . . . . Cargo Convoy Interrupts . | . . . . . . . . . . . . . . . . . . . . . . . . . . . . . . Stealth | -11 -10 -10 -9 -9 -9 -8 -8 -8 -8 -6 -6 -6 -6 -6 -5 -5 -5 -5 -4 -4 -4 -4 -3 -3 -2 -2 -2 -1 -1 --------- Run | Yrd Mat Min Mat Min Exi Min Mat Sto Rec Fac Ext Cet Arc Hub Fac Upp Upp Zhi Pro Fac Arm Lab Res Tes Res Qua Frg Acc Com Distress Signals 22 | . . . . . . . 1 2 . . . 2 . . . . . . . 1 2 . 6 2 1 . . 3 2 Communications Jammed . | . . . . . . . . . . . . . . . . . . . . . . . . . . . . . . Distress Signals . | . . . . . . . . . . . . . . . . . . . . . . . . . . . . . . Times Spotted 476 | . 3 8 11 13 . 7 4 29 6 4 18 9 8 18 12 5 14 . 4 16 44 . 35 41 15 22 26 33 71 Peak Tracking Total 16 | . 2 3 2 3 . 3 2 6 2 3 4 5 1 16 5 4 7 . 3 11 6 . 5 6 4 4 6 8 12 Tactical Retreats 28 | . . . . 1 . . . 2 . . 1 . . . 1 . 4 . 1 3 1 . 1 3 1 1 1 1 6 Traps | -11 -10 -10 -9 -9 -9 -8 -8 -8 -8 -6 -6 -6 -6 -6 -5 -5 -5 -5 -4 -4 -4 -4 -3 -3 -2 -2 -2 -1 -1 ------- Run | Yrd Mat Min Mat Min Exi Min Mat Sto Rec Fac Ext Cet Arc Hub Fac Upp Upp Zhi Pro Fac Arm Lab Res Tes Res Qua Frg Acc Com Traps Triggered 17 | . . . . . . . . 2 . . 6 . . . 1 . . . . . 2 . 1 . 2 1 1 . 1 Indirectly . | . . . . . . . . . . . . . . . . . . . . . . . . . . . . . . Trap Hack Attempts . | . . . . . . . . . . . . . . . . . . . . . . . . . . . . . . Triggered . | . . . . . . . . . . . . . . . . . . . . . . . . . . . . . . Disarmed . | . . . . . . . . . . . . . . . . . . . . . . . . . . . . . . Reprogrammed . | . . . . . . . . . . . . . . . . . . . . . . . . . . . . . . Reused . | . . . . . . . . . . . . . . . . . . . . . . . . . . . . . . Traps Extracted . | . . . . . . . . . . . . . . . . . . . . . . . . . . . . . . Installed . | . . . . . . . . . . . . . . . . . . . . . . . . . . . . . . Triggered . | . . . . . . . . . . . . . . . . . . . . . . . . . . . . . . Machines | -11 -10 -10 -9 -9 -9 -8 -8 -8 -8 -6 -6 -6 -6 -6 -5 -5 -5 -5 -4 -4 -4 -4 -3 -3 -2 -2 -2 -1 -1 ---------- Run | Yrd Mat Min Mat Min Exi Min Mat Sto Rec Fac Ext Cet Arc Hub Fac Upp Upp Zhi Pro Fac Arm Lab Res Tes Res Qua Frg Acc Com Machines Disabled 50 | . . . . . . 1 2 2 1 . 5 1 4 1 2 . . . . 2 2 . . 8 4 7 3 3 2 Max in Single Turn 2 | . . . . . . 1 2 1 1 . 1 . 1 1 2 . . . . 2 1 . . 1 1 1 1 1 2 Garrison Access 3 | . . . . . . . . . . . . . . . . . . . . 2 . . . 1 . . . . . Phase Generator 1 | . . . . . . . . . . . . . . . . . . . . . . . . . . . . . 1 Network Hub 1 | . . . . . . . . . . . . . . 1 . . . . . . . . . . . . . . . Energy Cycler 4 | . . . . . . . . . . . 4 . . . . . . . . . . . . . . . . . . Machines Repaired . | . . . . . . . . . . . . . . . . . . . . . . . . . . . . . . Machines Dismantled . | . . . . . . . . . . . . . . . . . . . . . . . . . . . . . . Machines Sabotaged 1 | . . . . . . . . . . . . . . 1 . . . . . . . . . . . . . . . Overloaded Fab Kills . | . . . . . . . . . . . . . . . . . . . . . . . . . . . . . . Hacking | -11 -10 -10 -9 -9 -9 -8 -8 -8 -8 -6 -6 -6 -6 -6 -5 -5 -5 -5 -4 -4 -4 -4 -3 -3 -2 -2 -2 -1 -1 --------- Run | Yrd Mat Min Mat Min Exi Min Mat Sto Rec Fac Ext Cet Arc Hub Fac Upp Upp Zhi Pro Fac Arm Lab Res Tes Res Qua Frg Acc Com Machines Accessed 52 | . . . 2 1 1 . 3 3 10 2 1 . . 1 3 . . 4 . 3 . . 4 4 3 3 2 . 2 Terminals 32 | . . . 2 1 . . 3 3 5 1 1 . . 1 2 . . . . 1 . . 1 2 2 3 2 . 2 Fabricators 5 | . . . . . . . . . . . . . . . 1 . . . . . . . 3 1 . . . . . Repair Stations . | . . . . . . . . . . . . . . . . . . . . . . . . . . . . . . Recycling Units 4 | . . . . . . . . . 4 . . . . . . . . . . . . . . . . . . . . Scanalyzers . | . . . . . . . . . . . . . . . . . . . . . . . . . . . . . . Garrison Access 5 | . . . . . . . . . . 1 . . . . . . . . . 2 . . . 1 1 . . . . Total Hacks 119 | . . . 5 1 1 . 7 4 13 3 3 . . 1 9 . . 17 . 5 . . 11 12 5 8 3 . 11 Successful 58 | . . . 1 1 1 . 1 3 12 1 . . . 1 2 . . 17 . 3 . . 4 2 2 3 1 . 3 Failed 61 | . . . 4 . . . 6 1 1 2 3 . . . 7 . . . . 2 . . 7 10 3 5 2 . 8 Catastrophic 12 | . . . 1 . . . 1 . . . 1 . . . 1 . . . . . . . 3 . 1 1 1 . 2 Database Lockouts . | . . . . . . . . . . . . . . . . . . . . . . . . . . . . . . Manual 42 | . . . 5 . 1 . 6 . 11 . 3 1 . 1 1 . . . . 1 . 1 3 . 3 3 1 . 1 Terminals 73 | . . . 5 1 . . 7 4 6 1 3 . . 1 7 . . . . 2 . . 3 7 4 8 3 . 11 Fabricators 13 | . . . . . . . . . . . . . . . 2 . . . . . . . 8 3 . . . . . Repair Stations . | . . . . . . . . . . . . . . . . . . . . . . . . . . . . . . Recycling Units 5 | . . . . . . . . . 5 . . . . . . . . . . . . . . . . . . . . Scanalyzers . | . . . . . . . . . . . . . . . . . . . . . . . . . . . . . . Garrison Access 8 | . . . . . . . . . . 2 . . . . . . . . . 3 . . . 2 1 . . . . Terminal Hacks 37 | . . . . 1 1 . 1 3 2 1 . . . . . . . 17 . 1 . . . 1 2 3 1 . 3 Record 5 | . . . . . . . . . . . . . . . . . . 5 . . . . . . . . . . . Part Schematic 4 | . . . . . . . . . . . . . . . . . . 4 . . . . . . . . . . . Robot Analysis 4 | . . . . . . . . . . . . . . . . . . 4 . . . . . . . . . . . Prototype ID Bank 4 | . . . . . . . . . . . . . . . . . . 4 . . . . . . . . . . . Open Door 6 | . . . . . . . . 3 . 1 . . . . . . . . . . . . . 1 . 1 . . . Branch Access Points 3 | . . . . . . . 1 . . . . . . . . . . . . . . . . . 1 1 . . . Emergency Access Points 1 | . . . . . . . . . . . . . . . . . . . . . . . . . . . . . 1 Alert Level 1 | . . . . . . . . . . . . . . . . . . . . . . . . . . . . . 1 Unreport Threat 1 | . . . . . . . . . . . . . . . . . . . . . . . . . . 1 . . . Locate Traps 2 | . . . . . . . . . . . . . . . . . . . . 1 . . . . . . . . 1 Zone Layout 3 | . . . . 1 . . . . . . . . . . . . . . . . . . . . 1 . 1 . . Proto ID Catalog 1 | . . . . . 1 . . . . . . . . . . . . . . . . . . . . . . . . Release Object 2 | . . . . . . . . . 2 . . . . . . . . . . . . . . . . . . . . Fabricator Hacks 6 | . . . . . . . . . . . . . . . 2 . . . . . . . 4 . . . . . . Network Status 1 | . . . . . . . . . . . . . . . 1 . . . . . . . . . . . . . . Load Schematic 2 | . . . . . . . . . . . . . . . . . . . . . . . 2 . . . . . . Build 3 | . . . . . . . . . . . . . . . 1 . . . . . . . 2 . . . . . . Repair Station Hacks . | . . . . . . . . . . . . . . . . . . . . . . . . . . . . . . Recycling Unit Hacks . | . . . . . . . . . . . . . . . . . . . . . . . . . . . . . . Scanalyzer . | . . . . . . . . . . . . . . . . . . . . . . . . . . . . . . Garrison Access Hacks 3 | . . . . . . . . . . . . . . . . . . . . 2 . . . 1 . . . . . Seal Access 3 | . . . . . . . . . . . . . . . . . . . . 2 . . . 1 . . . . . Unauthorized Hacks 11 | . . . 1 . . . . . 9 . . . . 1 . . . . . . . . . . . . . . . Terminals 7 | . . . 1 . . . . . 5 . . . . 1 . . . . . . . . . . . . . . . Skim 6 | . . . 1 . . . . . 5 . . . . . . . . . . . . . . . . . . . . Sabotage 1 | . . . . . . . . . . . . . . 1 . . . . . . . . . . . . . . . Fabricators . | . . . . . . . . . . . . . . . . . . . . . . . . . . . . . . Repair Stations . | . . . . . . . . . . . . . . . . . . . . . . . . . . . . . . Recycling Units 4 | . . . . . . . . . 4 . . . . . . . . . . . . . . . . . . . . Tunnel 4 | . . . . . . . . . 4 . . . . . . . . . . . . . . . . . . . . Scanalyzers . | . . . . . . . . . . . . . . . . . . . . . . . . . . . . . . Garrison Access . | . . . . . . . . . . . . . . . . . . . . . . . . . . . . . . Data Cores Recovered 3 | . . . . . . . . . . . . . . . . . . . . 1 . . . . 1 . 1 . . Used . | . . . . . . . . . . . . . . . . . . . . . . . . . . . . . . Hacking Detections 27 | . . . 2 1 . . 3 2 1 1 1 1 . . 2 . . . . 1 . . 4 3 1 2 . . 2 Full Trace Events 3 | . . . . . . . 1 . . . . . . . . . . . . . . . 2 . . . . . . Feedback Events . | . . . . . . . . . . . . . . . . . . . . . . . . . . . . . . Feedback Blocked . | . . . . . . . . . . . . . . . . . . . . . . . . . . . . . . Robot Schematics Acquired 1 | . . . . . . . . . . . . . . . . . . . . . . . . 1 . . . . . Robots Built . | . . . . . . . . . . . . . . . . . . . . . . . . . . . . . . Authchips . | . . . . . . . . . . . . . . . . . . . . . . . . . . . . . . Time . | . . . . . . . . . . . . . . . . . . . . . . . . . . . . . . Total Robot Build Rating . | . . . . . . . . . . . . . . . . . . . . . . . . . . . . . . Part Schematics Acquired 6 | . . . . . . . . . . . . . . . . . . 4 . . . . . 2 . . . . . Parts Built 3 | . . . . . . . . . . . . . . . 2 . . . . . . . 1 . . . . . . Authchips . | . . . . . . . . . . . . . . . . . . . . . . . . . . . . . . Time 513 | . . . . . . . . . . . . . . . 139 . . . . . . . 374 . . . . . . Total Part Build Rating 25 | . . . . . . . . . . . . . . . 18 . . . . . . . 7 . . . . . . Part Studies Acquired . | . . . . . . . . . . . . . . . . . . . . . . . . . . . . . . Parts Repaired . | . . . . . . . . . . . . . . . . . . . . . . . . . . . . . . Time . | . . . . . . . . . . . . . . . . . . . . . . . . . . . . . . Parts Recycled . | . . . . . . . . . . . . . . . . . . . . . . . . . . . . . . Recycled Matter . | . . . . . . . . . . . . . . . . . . . . . . . . . . . . . . Retrieved Matter . | . . . . . . . . . . . . . . . . . . . . . . . . . . . . . . Retrieved Components . | . . . . . . . . . . . . . . . . . . . . . . . . . . . . . . Parts Scanalyzed . | . . . . . . . . . . . . . . . . . . . . . . . . . . . . . . Part Schematics Acquired . | . . . . . . . . . . . . . . . . . . . . . . . . . . . . . . Parts Damaged . | . . . . . . . . . . . . . . . . . . . . . . . . . . . . . . Bothacking | -11 -10 -10 -9 -9 -9 -8 -8 -8 -8 -6 -6 -6 -6 -6 -5 -5 -5 -5 -4 -4 -4 -4 -3 -3 -2 -2 -2 -1 -1 ------------ Run | Yrd Mat Min Mat Min Exi Min Mat Sto Rec Fac Ext Cet Arc Hub Fac Upp Upp Zhi Pro Fac Arm Lab Res Tes Res Qua Frg Acc Com Used RIF Installer . | . . . . . . . . . . . . . . . . . . . . . . . . . . . . . . Robots Hacked . | . . . . . . . . . . . . . . . . . . . . . . . . . . . . . . Non-combat . | . . . . . . . . . . . . . . . . . . . . . . . . . . . . . . Combat . | . . . . . . . . . . . . . . . . . . . . . . . . . . . . . . Robot Hacks Applied . | . . . . . . . . . . . . . . . . . . . . . . . . . . . . . . Relay Couplers Released . | . . . . . . . . . . . . . . . . . . . . . . . . . . . . . . Fabnet Peak Effective % . | . . . . . . . . . . . . . . . . . . . . . . . . . . . . . . Robots Rewired 8 | . . . . . . . . . . . 6 . . . . . . . . . 2 . . . . . . . . Allies Hacked . | . . . . . . . . . . . . . . . . . . . . . . . . . . . . . . Hacks Repelled . | . . . . . . . . . . . . . . . . . . . . . . . . . . . . . . Allies | -11 -10 -10 -9 -9 -9 -8 -8 -8 -8 -6 -6 -6 -6 -6 -5 -5 -5 -5 -4 -4 -4 -4 -3 -3 -2 -2 -2 -1 -1 -------- Run | Yrd Mat Min Mat Min Exi Min Mat Sto Rec Fac Ext Cet Arc Hub Fac Upp Upp Zhi Pro Fac Arm Lab Res Tes Res Qua Frg Acc Com Total Allies 35 | . . 5 . . . . . 10 . . 10 5 . . . . . . . . 2 . . . . . . 3 . Largest Group 10 | . . 4 . . . . . 10 9 9 9 10 6 5 . . . . . . 2 . . . . . . 3 . Highest-Rated Group 762 | . . 71 . . . . . 173 157 157 340 762 440 412 . . . . . . 94 . . . . . . 379 . Highest-Rated Ally 159 | . . 31 . . . . . 29 29 29 159 159 96 96 . . . . . . 64 . . . . . . 135 . Total Orders 2 | . . . . . . . . . 2 . . . . . . . . . . . . . . . . . . . . STAY 1 | . . . . . . . . . 1 . . . . . . . . . . . . . . . . . . . . FOLLOW 1 | . . . . . . . . . 1 . . . . . . . . . . . . . . . . . . . . Ally Attacks 280 | . . 31 . . . . . 16 23 40 68 60 4 14 . . . . . . 1 . . . . . . 23 . Total Damage 7214 | . . 381 . . . . . 216 311 502 1644 1831 152 971 . . . . . . . . . . . . . 1206 . Kills 50 | . . 6 . . . . . 4 3 4 15 10 1 2 . . . . . . . . . . . . . 5 . Allies Corrupted 2 | . . . . . . . . . . . . . . 1 . . . . . . 1 . . . . . . . . Allies Melted . | . . . . . . . . . . . . . . . . . . . . . . . . . . . . . . Intel | -11 -10 -10 -9 -9 -9 -8 -8 -8 -8 -6 -6 -6 -6 -6 -5 -5 -5 -5 -4 -4 -4 -4 -3 -3 -2 -2 -2 -1 -1 ------- Run | Yrd Mat Min Mat Min Exi Min Mat Sto Rec Fac Ext Cet Arc Hub Fac Upp Upp Zhi Pro Fac Arm Lab Res Tes Res Qua Frg Acc Com Active Infowar (turns) 13326 | . 68 1501 523 1357 285 465 128 407 . . . 292 262 49 570 347 217 407 314 644 469 . . 705 395 2615 1277 29 . Optics 3615 | . . . 478 1357 285 465 59 . . . . 292 262 49 368 . . . . . . . . . . . . . . Sensors 7733 | . . 2 . . . . . . . . . . . . 313 347 217 407 314 644 469 . . 704 395 2615 1277 29 . Seismic 4719 | . 68 1499 523 1344 285 465 128 407 . . . . . . . . . . . . . . . . . . . . . Machine Analysis 229 | . . . . . . . . . . . . . . . 229 . . . . . . . . . . . . . . Cloaking 538 | . . . . . . . . . . . . . . . . . . . . 538 . . . . . . . . . ECM 1 | . . . . . . . . . . . . . . . . . . . . . . . . 1 . . . . . Robot Analysis Total 4 | . . . . . . . . . . . . . . . . . . 4 . . . . . . . . . . . Derelict Logs Recovered 4 | . . 1 . 1 . . . . . . . . . . . 1 1 . . . . . . . . . . . . Drone Launches . | . . . . . . . . . . . . . . . . . . . . . . . . . . . . . . Drone Recoveries . | . . . . . . . . . . . . . . . . . . . . . . . . . . . . . . Exploration | -11 -10 -10 -9 -9 -9 -8 -8 -8 -8 -6 -6 -6 -6 -6 -5 -5 -5 -5 -4 -4 -4 -4 -3 -3 -2 -2 -2 -1 -1 ------------- Run | Yrd Mat Min Mat Min Exi Min Mat Sto Rec Fac Ext Cet Arc Hub Fac Upp Upp Zhi Pro Fac Arm Lab Res Tes Res Qua Frg Acc Com Turns Passed 23917 | 82 135 1501 523 1357 285 465 128 1162 2264 153 500 354 262 49 570 347 217 407 314 644 671 37 1660 1084 395 4002 1447 1248 1654 Spaces Moved 14933 | 48 73 561 299 670 221 254 114 661 696 184 429 184 85 75 866 478 378 178 189 637 312 19 1472 1202 442 2054 608 353 1191 Core 6 | 2 . . . . . . . 2 . . 1 . . . . . . . . . . . . . . . 1 . . Treads 3067 | 46 73 561 76 . . . . . 56 . . 92 85 75 837 . . . . . . . 617 . . 7 114 353 75 Legs 4496 | . . . . . . . . . . . . . . . . . . 88 189 165 104 19 315 241 442 2047 493 . 393 Wheels 2309 | . . . 223 670 221 254 114 659 168 . . . . . . . . . . . . . . . . . . . . Hover 1145 | . . . . . . . . . 247 . . . . . . . . . . 211 . . 461 . . . . . 226 Flight 3910 | . . . . . . . . . 225 184 428 92 . . 29 478 378 90 . 261 208 . 79 961 . . . . 497 Fastest Speed 42 | 50 160 160 120 105 90 90 90 107 42 42 42 42 42 42 42 42 42 42 109 68 93 128 72 53 53 53 190 229 65 Average Speed 99 | 155 160 160 130 111 104 93 100 140 89 42 43 42 42 42 42 42 42 72 109 76 133 128 78 59 53 137 198 229 100 Slowest Speed 1850 | 160 160 160 240 120 105 105 122 1850 512 42 800 42 42 42 42 42 42 109 109 125 213 128 164 152 53 200 1650 229 229 Overloaded Moves . | . . . . . . . . . . . . . . . . . . . . . . . . . . . . . . Propulsion Burnouts . | . . . . . . . . . . . . . . . . . . . . . . . . . . . . . . Robots Hopped 27 | . . . . . . . . . . . 2 . . . . . . . . 4 . . . 10 . . . . 11 Potential Cave-ins 11 | . . . . . . . . . . . 8 . . . . . . . . . 1 . . . . . . . 2 Cave-ins Triggered . | . . . . . . . . . . . . . . . . . . . . . . . . . . . . . . Teleports 4 | . . . . . . . . . . . . . . . . . . . . . 1 . . . . . 1 2 . Exploration Rate (%) 45 | 3 11 99 28 96 63 58 11 85 91 7 62 58 80 13 19 58 53 60 38 17 20 25 45 90 18 94 19 11 34 Regions Visited 29 Branch Regions 20 Pre-discovered Areas 10 | . . . . 1 . . . . 6 . . . . . . . . 3 . . . . . . . . . . . Known Exits Taken 16 | . . . . . . . 1 . . 1 . . . 1 1 1 1 1 1 1 1 1 . 1 1 1 1 1 . Unknown Exits Taken 13 | 1 1 1 1 1 1 1 . 1 1 . 1 1 1 . . . . . . . . . 1 . . . . . . Scrap Searched 9 | . . 1 . 2 . 1 . . . . . . . . . 3 1 . 1 . . . . . . . . . . Spaces Dug 85 | . . . . . . . . . . 4 1 . . 2 10 . 6 . 2 5 6 . 3 11 7 3 3 10 12 Terrain Destroyed 1218 | . . . . . . 34 6 17 19 4 16 7 26 6 55 8 12 . 12 23 35 . 18 29 16 14 11 18 832 Melee . | . . . . . . . . . . . . . . . . . . . . . . . . . . . . . . Projectile 393 | . . . . . . 27 6 10 . 4 16 7 26 6 28 8 12 . 12 23 35 . 18 29 16 14 11 18 67 AOE 825 | . . . . . . 7 . 7 19 . . . . . 27 . . . . . . . . . . . . . 765 Terrain Rammed . | . . . . . . . . . . . . . . . . . . . . . . . . . . . . . . Walls Destroyed . | . . . . . . . . . . . . . . . . . . . . . . . . . . . . . . Machines Disabled . | . . . . . . . . . . . . . . . . . . . . . . . . . . . . . . Actions | -11 -10 -10 -9 -9 -9 -8 -8 -8 -8 -6 -6 -6 -6 -6 -5 -5 -5 -5 -4 -4 -4 -4 -3 -3 -2 -2 -2 -1 -1 --------- Run | Yrd Mat Min Mat Min Exi Min Mat Sto Rec Fac Ext Cet Arc Hub Fac Upp Upp Zhi Pro Fac Arm Lab Res Tes Res Qua Frg Acc Com Total 23127 | 53 85 1145 376 1224 276 480 127 854 2331 256 709 451 301 88 1044 619 426 452 291 768 494 31 1991 1481 563 3158 802 752 1499 Wait 6647 | . . 568 24 513 42 226 . 99 1587 50 113 224 193 6 120 135 32 247 95 91 56 13 408 127 62 984 136 342 154 Move 14855 | 47 72 560 298 669 220 253 113 660 695 183 424 183 84 75 865 477 377 177 188 628 311 18 1471 1181 441 2053 607 352 1173 Hop 23 | . . . . . . . . . . . 2 . . . . . . . . 4 . . . 10 . . . . 7 Pick Up 130 | . 7 5 6 3 3 1 5 18 9 7 1 10 . . 7 1 2 4 . 4 5 . 8 8 3 8 . 1 4 Fast Attach 76 | 6 2 . 4 1 1 . 3 11 1 1 1 2 2 . 3 . . 6 . . 2 . 3 10 . 5 2 8 2 Attach 42 | . . . 1 2 1 . 1 2 2 2 . 1 . . 4 . . . . 1 5 . 2 3 1 2 2 5 5 Detach 7 | . . . . . . . . 1 1 . . . . . . . . . . . . . . 1 . . . 1 3 Swap 41 | . . 2 4 . 2 . 1 4 . . 4 . . . 2 . . . . 2 . . 2 5 . 9 1 . 3 Drop 152 | . 1 . 8 2 7 . 4 17 20 6 1 11 6 . 3 . 1 8 . 4 1 . 11 20 1 11 1 3 5 Fire 985 | . 3 9 31 30 . . . 35 16 7 41 20 16 6 39 6 14 9 8 34 106 . 86 116 45 86 51 30 141 Melee . | . . . . . . . . . . . . . . . . . . . . . . . . . . . . . . Ram 7 | . . . . 4 . . . 1 . . . . . . . . . . . . 1 . . . . . . . 1 Kick 7 | . . . . . . . . . . . . . . . . . . . . . . . . . 5 . 1 . 1 Crush 16 | . . 1 . . . . . 2 . . . . . 1 1 . . . . . . . . . . . 1 10 . Escape Stasis 18 | . . . . . . . . . . . 13 . . . . . . . . . . . . . 5 . . . . Rewire 121 | . . . . . . . . 4 . . 109 . . . . . . 1 . . 7 . . . . . . . . Trap . | . . . . . . . . . . . . . . . . . . . . . . . . . . . . . . Miscellaneous . | . . . . . . . . . . . . . . . . . . . . . . . . . . . . . . Route ------- -11/Scrapyard -10/Materials -10/Mines (discovered 2 exits: *Mat x2) -9/Materials -9/Mines (discovered 2 exits: *Mat / *Exi) -9/Exiles (discovered 2 exits: [*Min x2]) -8/Mines -8/Materials -8/Storage (discovered 2 exits: [*Fac] / *Rec) -8/Recycling -6/Factory -6/Extension (discovered 3 exits: *Fac x2 / *Cet) -6/Cetus (discovered 2 exits: *Fac / [*Arc]) -6/Archives (discovered 2 exits: *Hub x2) -6/Hub_04(d) (discovered 2 exits: *Fac x2) -5/Factory -5/Upper Caves -5/Upper Caves -5/Zhirov -4/Proximity Caves -4/Factory (discovered 2 exits: *Res / *Arm) -4/Armory -4/Lab -3/Research (discovered 3 exits: *Res x2 / *Tes) -3/Testing -2/Research (discovered 2 exits: *Qua x2) -2/Quarantine (discovered 3 exits: *Acc / [*Sec] / *Frg) -2/Protoforge -1/Access (discovered 2 exits: Sur / *Com) -1/Command History --------- Turn | Location | Event 12 | -11/Scrapyard | Discovered new exit (range 16) 83 | -11/Scrapyard | Entered Materials 83 | -10/Materials | Discovered new exit (range 16) 218 | -10/Materials | Entered Mines 220 | -10/Mines | Assisted by bots powering up and referring to "LRC-V3" 304 | -10/Mines | Build established: Mutant 577 | -10/Mines | Discovered new exit (range 15) 965 | -10/Mines | Learned 2 Materials zone layouts 1204 | -10/Mines | Met a Derelict testing a Signal Generator 1205 | -10/Mines | Discovered new exit (range 6) 1210 | -10/Mines | Found Signal Generator 1280 | -10/Mines | Destroyed YI-UF0 1305 | -10/Mines | Lost 4 allies 1379 | -10/Mines | Found a damaged Exp. Sensor Array with a note attached 1382 | -10/Mines | Found Prototype Device 1420 | -10/Mines | Identified Exp. Sensor Array 1449 | -10/Mines | Received a Mining Laser from a helpful Derelict 1719 | -10/Mines | Entered Materials 1719 | -9/Materials | Evolved 2 slots: Propulsion x1, Utility x1 2217 | -9/Materials | Discovered new exit (range 17) 2242 | -9/Materials | Entered Mines 2325 | -9/Mines | Build established: Scavenger-Mutant 2422 | -9/Mines | Learned Materials emergency access door positions 2457 | -9/Mines | Assembled infested the area 3023 | -9/Mines | Found a hidden stash of uninstalled traps 3067 | -9/Mines | Learned location of Storage (-8) 3247 | -9/Mines | A weapon hastily lodged in a ceiling crevice suddenly fell to the ground 3312 | -9/Mines | Discovered new exit (range 5) 3594 | -9/Mines | Deemed a non-threat by the Exiles lab entrance 3595 | -9/Mines | Discovered new exit (range 5) 3599 | -9/Mines | Entered Exiles 3615 | -9/Exiles | Discovered new exit (range 17) 3628 | -9/Exiles | Met 8R-AWN 3644 | -9/Exiles | Met EX-HEX 3719 | -9/Exiles | Met EX-BIN 3730 | -9/Exiles | Aligned with FarCom system 3731 | -9/Exiles | Given EX-Vault access code 3762 | -9/Exiles | Opened EX-Vault 3775 | -9/Exiles | Found AWS/Gauss 3777 | -9/Exiles | Found Skeleton Box 3782 | -9/Exiles | Found Firepult 3804 | -9/Exiles | Warned to stay clear of 0b10 Research branches 3835 | -9/Exiles | Met EX-DEC 3874 | -9/Exiles | Discovered new exit (range 12) 3884 | -9/Exiles | Stole three prototypes: AWS/Gauss, Skeleton Box, Firepult 3884 | -9/Exiles | Entered Mines 4062 | -8/Mines | Build established: Mutant 4342 | -8/Mines | Discovered new exit (range 9) 4349 | -8/Mines | Entered Materials 4349 | -8/Materials | Evolved 2 slots: Propulsion x1, Weapon x1 4398 | -8/Materials | Identified exit to Storage 4477 | -8/Materials | Entered Storage 4479 | -8/Storage | FarCom data flow suspended 4506 | -8/Storage | Remotely autohacked Sealed Heavy Doors 4774 | -8/Storage | Build established: Tank 4792 | -8/Storage | Remotely autohacked Sealed Blast Doors 4792 | -8/Storage | Discovered new exit (range 6) 4951 | -8/Storage | AWS/Gauss suddenly broke down 5072 | -8/Storage | Assisted by bots powering up and referring to "LRC-V3" 5370 | -8/Storage | Build established: Commander-Mutant 5432 | -8/Storage | Discovered new exit (range 15) 5639 | -8/Storage | Entered Recycling 5639 | -8/Recycling | Accompanied by 9 allies 5774 | -8/Recycling | Discovered new exit (range 5) 5808 | -8/Recycling | Scanned before Scraplab entrance 5854 | -8/Recycling | Angered Scraplab inhabitants 5909 | -8/Recycling | Found Prototype Device 5909 | -8/Recycling | Identified Scrap Engine 6400 | -8/Recycling | Build established: Commander-Construct 7478 | -8/Recycling | Learned location of 1 exit from Extension 7553 | -8/Recycling | Learned 8 Factory zone layouts 7616 | -8/Recycling | Learned location of 2 exits from Lower Caves 7709 | -8/Recycling | Learned Storage emergency access door positions 7829 | -8/Recycling | Learned Factory trap positions 7903 | -8/Recycling | Entered Factory 7903 | -6/Factory | Accompanied by 9 allies 7903 | -6/Factory | Evolved 4 slots: Power x1, Propulsion x1, Utility x2 7904 | -6/Factory | Identified exit to Extension 7906 | -6/Factory | Loaded intel: 86 trap records 8056 | -6/Factory | Entered Extension 8056 | -6/Extension | Accompanied by 5 allies 8057 | -6/Extension | Identified exit to Factory 8113 | -6/Extension | Remotely autohacked Sealed Heavy Doors 8114 | -6/Extension | Rescued A7 8132 | -6/Extension | Remotely autohacked Sealed Heavy Doors 8133 | -6/Extension | Rescued a captive Derelict 8161 | -6/Extension | Energy Cycler disabled 8161 | -6/Extension | Rescued a captive Derelict 8161 | -6/Extension | Rescued a captive Derelict 8162 | -6/Extension | Rescued a captive Derelict 8162 | -6/Extension | Rescued a captive Derelict 8163 | -6/Extension | Rescued a captive Derelict 8165 | -6/Extension | Rescued a captive Derelict 8172 | -6/Extension | Rescued a captive Derelict 8406 | -6/Extension | First assault squad dispatched 8525 | -6/Extension | Discovered exit to Factory (range 10) 8525 | -6/Extension | Discovered new exit (range 6) 8556 | -6/Extension | Entered Cetus 8556 | -6/Cetus | Accompanied by 6 allies (A7) 8561 | -6/Cetus | Acquired a Cetus Manufacturing Module code from A7 8579 | -6/Cetus | Spotted Cetus Guard 8579 | -6/Cetus | Spotted Cetus Guard 8580 | -6/Cetus | Allies destroyed Cetus Guard 8581 | -6/Cetus | Spotted Cetus Guard 8591 | -6/Cetus | Destroyed Cetus Guard 8596 | -6/Cetus | Allies destroyed Cetus Guard 8641 | -6/Cetus | Started Cetus Manufacturing Module 8644 | -6/Cetus | Discovered new exit (range 21) 8666 | -6/Cetus | Manufactured an Enhanced Grunt 8691 | -6/Cetus | Manufactured an Enhanced Grunt 8716 | -6/Cetus | Manufactured an Enhanced Grunt 8741 | -6/Cetus | Manufactured an Enhanced Grunt 8763 | -6/Cetus | Spotted Cetus Guard 8764 | -6/Cetus | Spotted Cetus Guard 8766 | -6/Cetus | Manufactured an Enhanced Grunt 8768 | -6/Cetus | Spotted Cetus Guard 8772 | -6/Cetus | Spotted Cetus Guard 8789 | -6/Cetus | Allies destroyed Cetus Guard 8794 | -6/Cetus | Allies destroyed Cetus Guard 8794 | -6/Cetus | Allies destroyed Cetus Guard 8798 | -6/Cetus | Allies destroyed Cetus Guard 8800 | -6/Cetus | Discovered exit to Factory (range 21) 8810 | -6/Cetus | Met Revision 17 8910 | -6/Cetus | Entered Archives 8910 | -6/Archives | Accompanied by 8 allies (A7) 8944 | -6/Archives | Discovered new exit (range 21) 8946 | -6/Archives | Discovered new exit (range 22) 9172 | -6/Archives | Entered Hub_04(d) 9172 | -6/Hub_04(d) | Accompanied by 5 allies 9178 | -6/Hub_04(d) | Discovered exit to Factory (range 22) 9201 | -6/Hub_04(d) | Network Hub disabled 9207 | -6/Hub_04(d) | Spotted Lightning 9207 | -6/Hub_04(d) | Spotted Lightning 9207 | -6/Hub_04(d) | Spotted Lightning 9221 | -6/Hub_04(d) | Discovered exit to Factory (range 14) 9221 | -6/Hub_04(d) | Entered Factory 9221 | -5/Factory | Evolved 2 slots: Utility x2 9249 | -5/Factory | Lost 3 allies 9417 | -5/Factory | Discovered new exit (range 9) 9518 | -5/Factory | Build established: Construct 9652 | -5/Factory | Fabricated Cmb. Linear Gravjet (x2) 9689 | -5/Factory | Identified exit to Upper Caves 9791 | -5/Factory | Entered Upper Caves 9826 | -5/Upper Caves | Learned Factory garrison access intel 9871 | -5/Upper Caves | Encountered a Warlord checkpoint 9883 | -5/Upper Caves | Ambushed by wild Derelicts 10052 | -5/Upper Caves | Discovered new exit (range 5) 10057 | -5/Upper Caves | Identified exit to Upper Caves 10138 | -5/Upper Caves | Entered another Upper Caves area 10307 | -5/Upper Caves | Learned Factory terminal intel 10322 | -5/Upper Caves | Encountered a Master Thief 10323 | -5/Upper Caves | Encountered a Master Thief 10323 | -5/Upper Caves | Encountered a Master Thief 10324 | -5/Upper Caves | Encountered a Master Thief 10324 | -5/Upper Caves | Skeleton Box stolen by Master Thief 10325 | -5/Upper Caves | Centrium Medium Armor Plating stolen by Master Thief 10346 | -5/Upper Caves | Discovered new exit (range 11) 10351 | -5/Upper Caves | Identified exit to Zhirov 10355 | -5/Upper Caves | Entered Zhirov 10355 | -5/Zhirov | Discovered new exit (range 3) 10363 | -5/Zhirov | Met Zhirov 10372 | -5/Zhirov | Learned location of Quarantine (-2) 10372 | -5/Zhirov | Learned location of Testing (-3) 10372 | -5/Zhirov | Learned location of Command (-1) 10375 | -5/Zhirov | Zhirov requested help retrieving the SGEMP Prototype 10382 | -5/Zhirov | Found Alien Artifact 10382 | -5/Zhirov | Identified Integrated Dissipator 10382 | -5/Zhirov | Installed Integrated Dissipator, increased core heat dissipation (+20) 10390 | -5/Zhirov | Found Alien Artifact 10761 | -5/Zhirov | Identified exit to Proximity Caves 10762 | -5/Zhirov | Entered Proximity Caves 10765 | -4/Proximity Caves | Attracted the attention of an 0b10 checkpoint 10882 | -4/Proximity Caves | Spotter reported a threat 11067 | -4/Proximity Caves | Discovered new exit (range 7) 11074 | -4/Proximity Caves | Identified exit to Factory 11076 | -4/Proximity Caves | Entered Factory 11076 | -4/Factory | Evolved 2 slots: Utility x1, Weapon x1 11077 | -4/Factory | Loaded intel: 26 terminal locations 11078 | -4/Factory | Loaded intel: 4 garrison access locations 11158 | -4/Factory | Discovered new exit (range 15) 11172 | -4/Factory | Identified exit to Research 11707 | -4/Factory | Discovered new exit (range 11) 11718 | -4/Factory | Identified exit to Armory 11720 | -4/Factory | Entered Armory 11881 | -4/Armory | Destroyed 7 combat bots 12102 | -4/Armory | Found Adv. Powered Armor 12105 | -4/Armory | Found Adv. Powered Armor 12107 | -4/Armory | Found Adv. Powered Armor 12110 | -4/Armory | Found Adv. Powered Armor 12146 | -4/Armory | Identified Transdimensional Reconstructor 12146 | -4/Armory | Warped through subspace to slip node 12146 | -4/Armory | Discovered new exit (range 1) 12146 | -4/Armory | Identified exit to Lab 12269 | -4/Armory | Found Quantum Capacitor 12391 | -4/Armory | Entered Lab 12391 | -4/Lab | Discovered exit to Research (range 9) 12420 | -4/Lab | Unable to decrypt terminal 12420 | -4/Lab | Opened the door to a hidden lab 12421 | -4/Lab | Gained access to the hidden lab's interior 12428 | -4/Lab | Entered Research 12428 | -3/Research | Evolved 2 slots: Propulsion x1, Utility x1 12628 | -3/Research | Revision forces began assault on 0b10 12632 | -3/Research | Met up with Revision 17++ 12729 | -3/Research | Build established: Mutant 12802 | -3/Research | Spotted B-86 Titan 13005 | -3/Research | Destroyed B-86 Titan 13107 | -3/Research | Build established: Construct 13128 | -3/Research | Research terminal network offline 13284 | -3/Research | Discovered new exit (range 7) 13288 | -3/Research | Identified exit to Research 13468 | -3/Research | Found Prototype Processor 13468 | -3/Research | Identified Exp. Targeting Computer 13472 | -3/Research | Found Prototype Processor 13472 | -3/Research | Identified Exp. Core Analyzer 13602 | -3/Research | Spotted Striker 13609 | -3/Research | Destroyed Striker 13628 | -3/Research | Spotted Striker 13636 | -3/Research | Destroyed Striker 13662 | -3/Research | Destroyed 9 combat bots 13690 | -3/Research | Spotted Executioner 13704 | -3/Research | Spotted Striker 13708 | -3/Research | Destroyed Striker 13717 | -3/Research | Destroyed Executioner 13792 | -3/Research | Discovered exit to Research (range 10) 13897 | -3/Research | Discovered new exit (range 15) 14014 | -3/Research | Spotted Striker 14041 | -3/Research | Fabricated Assault Drone Bay? 14045 | -3/Research | Lost 4 allies 14088 | -3/Research | Entered Testing 14102 | -3/Testing | Spotted PG-HINT3YIL74 14163 | -3/Testing | Found Prototype Energy Cannon 14163 | -3/Testing | Identified Hpw. Disruptor Cannon 14323 | -3/Testing | Build established: Scavenger-Construct 14341 | -3/Testing | Found Prototype Hackware 14662 | -3/Testing | Found Prototype Energy Gun 14662 | -3/Testing | Identified Warp Gun 14883 | -3/Testing | Discovered exit to Research (range 11) 14890 | -3/Testing | Found Prototype Hackware 15012 | -3/Testing | Build established: Construct 15018 | -3/Testing | Found Prototype Protection 15036 | -3/Testing | Spotted Striker 15037 | -3/Testing | Spotted Striker 15052 | -3/Testing | Destroyed Striker 15062 | -3/Testing | Destroyed Striker 15074 | -3/Testing | Spotted Alpha 7 15088 | -3/Testing | First assault squad dispatched 15099 | -3/Testing | Destroyed Alpha 7 15106 | -3/Testing | Found Prototype Device 15106 | -3/Testing | Identified Exp. ECM Suite 15123 | -3/Testing | Stole the SGEMP Prototype 15172 | -3/Testing | Entered Research 15172 | -2/Research | Evolved 2 slots: Utility x2 15176 | -2/Research | Identified SHELL Armor 15249 | -2/Research | Found Exp. Core Analyzer 15475 | -2/Research | Identified exit to Quarantine 15567 | -2/Research | Entered Quarantine 15572 | -2/Quarantine | Cryocooling Duct disabled 15587 | -2/Quarantine | Ambient heat levels rising (+20) 15587 | -2/Quarantine | Non-combat units ordered to evacuate 15590 | -2/Quarantine | Found Alien Artifact 15590 | -2/Quarantine | Identified Subatomic Replicator 15624 | -2/Quarantine | Cryocooling Duct disabled 15639 | -2/Quarantine | Ambient heat levels rising (+20) 15639 | -2/Quarantine | Combat units ordered to evacuate 15739 | -2/Quarantine | Quarantine Guard activated 15814 | -2/Quarantine | Spotted Quarantine Guard 15859 | -2/Quarantine | Spotted Quarantine Guard 15861 | -2/Quarantine | Spotted Quarantine Guard 15862 | -2/Quarantine | Destroyed Quarantine Guard 15869 | -2/Quarantine | Destroyed Quarantine Guard 15898 | -2/Quarantine | Destroyed Quarantine Guard 16043 | -2/Quarantine | Spotted Quarantine Guard 16046 | -2/Quarantine | Destroyed Quarantine Guard 16180 | -2/Quarantine | Discovered new exit (range 10) 16196 | -2/Quarantine | Identified exit to Access 16555 | -2/Quarantine | Spotted Quarantine Guard 16562 | -2/Quarantine | Destroyed Quarantine Guard 16884 | -2/Quarantine | Found Transdimensional Reconstructor 16891 | -2/Quarantine | Found Transdimensional Reconstructor 16893 | -2/Quarantine | Found Alien Artifact 16906 | -2/Quarantine | Found Alien Artifact 16976 | -2/Quarantine | Found Alien Launcher 16998 | -2/Quarantine | Spotted Quarantine Guard 17007 | -2/Quarantine | Destroyed Quarantine Guard 17043 | -2/Quarantine | Spotted Quarantine Guard 17091 | -2/Quarantine | Destroyed Quarantine Guard 17527 | -2/Quarantine | Spotted Quarantine Guard 17527 | -2/Quarantine | Spotted Quarantine Guard 17539 | -2/Quarantine | Destroyed Quarantine Guard 17542 | -2/Quarantine | Destroyed Quarantine Guard 17919 | -2/Quarantine | Spotted Quarantine Guard 17930 | -2/Quarantine | Destroyed Quarantine Guard 18489 | -2/Quarantine | Spotted Fortress 18944 | -2/Quarantine | Destroyed Fortress 18994 | -2/Quarantine | Found Prototype Device 18994 | -2/Quarantine | Identified Exp. Force Field 19003 | -2/Quarantine | Found Prototype Device 19003 | -2/Quarantine | Identified Exp. EM Shield 19007 | -2/Quarantine | Found Prototype Device 19007 | -2/Quarantine | Identified Thermal Barrier 19363 | -2/Quarantine | Discovered new exit (range 7) 19363 | -2/Quarantine | Discovered new exit (range 6) 19363 | -2/Quarantine | Spotted Quarantine Guard 19363 | -2/Quarantine | Spotted Quarantine Guard 19370 | -2/Quarantine | Destroyed Quarantine Guard 19376 | -2/Quarantine | Destroyed Quarantine Guard 19394 | -2/Quarantine | Identified exit to Protoforge 19569 | -2/Quarantine | Entered Protoforge 19570 | -2/Protoforge | Superfortress began startup sequence 19678 | -2/Protoforge | Spotted B-90 Cyclops 19691 | -2/Protoforge | Destroyed B-90 Cyclops 20503 | -2/Protoforge | Discovered exit to Access (range 8) 20554 | -2/Protoforge | Identified Dimensional Node Initializer 20554 | -2/Protoforge | Initialized slip node 20623 | -2/Protoforge | Spotted Hotshot 20625 | -2/Protoforge | Destroyed Hotshot 20626 | -2/Protoforge | Spotted Hotshot 20650 | -2/Protoforge | Destroyed Hotshot 20651 | -2/Protoforge | Spotted Hotshot 20660 | -2/Protoforge | Destroyed Hotshot 20664 | -2/Protoforge | Spotted Hotshot 20669 | -2/Protoforge | Destroyed Hotshot 20841 | -2/Protoforge | System corruption reached 10% 20913 | -2/Protoforge | Spotted Overlord 20972 | -2/Protoforge | Identified Hpw. Transdimensional Reconstructor 20972 | -2/Protoforge | Warped through subspace to slip node 21002 | -2/Protoforge | Lost 3 parts (2p1u) 21016 | -2/Protoforge | Entered Access 21016 | -1/Access | Evolved 2 slots: Power x1, Utility x1 21017 | -1/Access | Delivered the SGEMP Prototype to Zhirov 21017 | -1/Access | Zhirov transferred Access data 21018 | -1/Access | Loaded intel: 123 machine locations 21018 | -1/Access | Loaded intel: 63 trap records 21018 | -1/Access | Identified exit to Surface 21018 | -1/Access | Discovered exit to Surface (range 112) 21018 | -1/Access | Identified exit to Command 21018 | -1/Access | Discovered exit to Command (range 100) 21401 | -1/Access | Zhirov warped through subspace 21444 | -1/Access | System corruption reached 10% 21560 | -1/Access | Warped through subspace 21586 | -1/Access | Warped through subspace 21969 | -1/Access | Destroyed 7 combat bots 22256 | -1/Access | Build established: Scavenger-Construct 22264 | -1/Access | Entered Command 22664 | -1/Command | Phase Generator disabled 23014 | -1/Command | First assault squad dispatched 23136 | -1/Command | Identified System Mapper 23137 | -1/Command | Identified Ghost Barrier 23327 | -1/Command | Spotted Combat Programmer 23660 | -1/Command | Destroyed 9 combat bots 23798 | -1/Command | Met MAIN.C 23871 | -1/Command | Spotted Combat Programmer 23886 | -1/Command | 0b10 Conduit disabled 23894 | -1/Command | System corruption reached 30% 23898 | -1/Command | Identified Sigix Terminator 23902 | -1/Command | Spotted M Guard 23903 | -1/Command | Spotted M Guard 23908 | -1/Command | Fired Sigix Terminator 23908 | -1/Command | Destroyed Combat Programmer 23913 | -1/Command | Core integrity fell below 50% 23918 | -1/Command | Self-destructed Last Messages --------------- 23902_ Penetrated by EMDS Slug. 23902_ Combat Programmer resets Combat Programmer, system corruption cleaned. 23904_ Penetrated by EMDS Slug. 23906_ EMDS Slug penetrates Heavy Barrier. 23907_ Penetrated by EMDS Slug. 23908_ Sigix Terminator expended. 23908_ Destroyed Adv. Heat Sink. 23908_ Destroyed Lgt. Quantum Reactor. 23908_ G-73 Enforcer destroyed. 23908_ Destroyed Phase Gun. 23908_ G-73 Enforcer destroyed. 23908_ Combat Programmer fries systems beyond repair. 23908_ Combat Programmer destroyed. 23908_ Destroyed Prototype Energy Cannon. 23908_ Destroyed Centrium Medium Armor Plating. 23912_ Knocked back. 23917_ Discarded SHELL Armor. [Achievement: Torch] Map ----- +----------------------------------------------------+ | ?????????????????????????????????????????????????? | | ?????????????????????????????????????????????????? | | ?????????????????????????????????????????????????? | | ?????????????????????????????????????????????????? | | ?????????????????????????????????????????????????? | | ?????????????????????????????????????????????????? | | ?????????????????????????????????????????????????? | | ?????????????????????????????????????????????????? | | ?????????????????????????????????????????????????? | | ?????????????????????????????????????????????????? | | ??????????????????????? ?????????????????????? | | ?????????????????????;;;;;;;;;???????????????????? | | ?????????????????? ????????????????? | | ????????????????;;;;;;;;;;;;;;;;;;;##????????????? | | ??????????????# ;????????????? | | ?????????????#; ;????????????? | | ?????????????#; ;;############ | | ?????????????#; | | ??????????????# MMM | | ??????????????# MMMp | | ??????????????# MMM ;;;########### | | ??????????????# Y ; ; ?????????? | | ??????????????# Y ;;;;?????????? | | ??????????????# % ; ; ????????? | | ??????????????#" g ; ; ????????? | | ??????????????# " @ ; ; ????????? | | ??????????????# ; ; ????????? | | ??????????????# ; ; ????????? | | ??????????????# ; ; ?????????? | | ??????????????" ; ; ?????????? | | ??????????????" ; ;??????????? | | ??????????????" ; ;??????????? | | ??????????????# ; ;??????????? | | ??????????????# ; ???????????? | | ??????????????# " ; ???????????? | | ??????????????################;;;;;;;????????????? | | ??????????????????????????????### #????????????? | | ?????????????????????????????????###?????????????? | | ?????????????????????????????????????????????????? | | ?????????????????????????????????????????????????? | | ?????????????????????????????????????????????????? | | ?????????????????????????????????????????????????? | | ?????????????????????????????????????????????????? | | ?????????????????????????????????????????????????? | | ?????????????????????????????????????????????????? | | ?????????????????????????????????????????????????? | | ?????????????????????????????????????????????????? | | ?????????????????????????????????????????????????? | | ?????????????????????????????????????????????????? | | ?????????????????????????????????????????????????? | +----------------------------------------------------+ Best States ------------- Heat Dissipation 129 Energy Generation 66 Energy Capacity 1176 Matter Stores 300 Matter Capacity 300 Sight Range 22 Robot Scan Range 20 Terrain Scan Density 10 Cloak Strength 3 Armor Coverage 900 Resistance: EM 75 Evasion (%) 64 Targeting Accuracy 12 Core Analysis 8 Recoil Reduction 6 Energy Filtering 30 Offensive Hacking 20 Defensive Hacking 20 Item Schematics ----------------- Assault Drone Bay | -5/Zhirov | Free Exp. Optical Array | -5/Zhirov | Free Exp. Heat Sink | -5/Zhirov | Free Imp. Arc Thrower | -5/Zhirov | Free Exp. Targeting Computer | -3/Testing | Archive Exp. Coolant Injector | -3/Testing | Archive Robot Schematics ------------------ A-02 Transporter | -3/Testing | Archive Fabricated ------------ Cmb. Linear Gravjet | x2 | -5/Factory | Preloaded Assault Drone Bay | x1 | -3/Research Repaired ---------- Nothing Studied --------- None Alien Tech Used ----------------- Integrated Dissipator Transdimensional Reconstructor Subatomic Replicator Dimensional Node Initializer High-powered Transdimensional Reconstructor Sigix Terminator Achievements -------------- Cannon Specialist Cool Guys Stay Cool Under Fire Torch Challenges ------------ None Game ------ Seed SpliceGlidesysTerminator Manual? 0 Play Time 03:09:27 Cumulative 579.4 hours Start 2025.11.23 @ 16:00:20 End 2025.11.24 @ 16:01:02 Sessions 3 Manual Loads 0 Difficulty Rogue Special Mode None Game No. 912 Rogue 757 Adventurer 148 Explorer 7 Win Type - Total 28 Types 21/1/4/1/0/0/1/0/0/0 Lore% 81 Gallery% 84 Achievement% 72 Wizard Run 0 Options --------- Layout 1 ASCII 0 Keyboard 0 Movement Numpad Keybinds 0 Fullscreen 2 Font 24/Smallcaps Map View 50x35 Zoom Use 0% Tactical HUD 1 Map Filters NONE Filters NONE Steam 1 RUN: 24abb655-f86a-42b1-814e-291deae9ccee